bitfinex-derivatives/quotes_SOLF0:USTF0_20240913
["timestamp","ask_amount","ask_price","bid_price","bid_amount"]
[1726261226947,9.99,138.42,138.37,9.99]
[1726261227147,13.6003,138.42,138.38,3.611]
[1726261227348,9.99,138.42,138.37,9.99]
[1726261227850,9.99,138.42,138.39,3.6108]
[1726261229447,13.6004,138.42,138.39,3.6108]
[1726261229647,3.6104,138.42,138.39,3.6108]
[1726261230049,13.6004,138.42,138.39,3.6108]
[1726261231953,3.6101,138.43,138.4,9.99]
[1726261233257,3.6101,138.43,138.4,13.6005]
[1726261234258,3.6102,138.42,138.4,3.6105]
[1726261236963,3.61,138.43,138.4,13.6005]
[1726261237360,3.61,138.43,138.41,3.6104]
[1726261237563,3.6098,138.44,138.41,3.6104]
[1726261237764,3.6098,138.44,138.41,9.99]
[1726261239466,3.6098,138.44,138.41,13.6003]
[1726261239668,3.64787877,138.47,138.39,9.99]
[1726261239669,13.5999,138.43,138.39,9.99]
[1726261240266,13.5999,138.43,138.4,3.6106]
[1726261241163,13.6003,138.42,138.39,3.6108]
[1726261243264,13.6,138.43,138.4,3.6107]
[1726261245477,3.6103,138.42,138.39,13.6008]
[1726261246976,13.6,138.43,138.4,3.6106]
[1726261248970,3.61,138.43,138.4,3.6106]
[1726261249480,9.99,138.44,138.41,3.6103]
[1726261250370,3.6101,138.43,138.4,3.6106]
[1726261255379,3.6102,138.42,138.4,3.6106]
[1726261255879,1.4391,138.46,138.4,3.6106]
[1726261256180,9.99,138.44,138.41,13.6002]
[1726261256474,11.4291,138.46,138.41,9.99]
[1726261256672,9.99,138.45,138.41,9.99]
[1726261257280,3.6099,138.43,138.41,9.99]
[1726261259987,3.6099,138.43,138.41,13.6003]
[1726261263975,3.6099,138.43,138.41,9.99]
[1726261268490,1.4391,138.46,138.37,0.7267]
[1726261268491,3.6108,138.4,138.37,4.338]
[1726261268694,9.99,138.41,138.36,9.99]
[1726261269404,9.99,138.41,138.36,13.6016]
[1726261269805,3.611,138.39,138.36,13.6016]
[1726261278422,3.611,138.39,138.36,9.99]
[1726261278909,3.611,138.39,138.36,13.6016]
[1726261279213,9.99,138.4,138.35,2.8]
[1726261279214,3.6112,138.38,138.35,12.79]
[1726261279717,3.6112,138.38,138.35,16.4019]
[1726261280108,3.6115,138.37,138.35,2.8]
[1726261282504,3.6117,138.36,138.35,2.8]
[1726261282908,3.6117,138.36,138.34,13.6021]
[1726261284820,9.99,138.35,138.32,2.7922]
[1726261285920,9.99,138.35,138.32,6.4048]
[1726261286517,13.6021,138.35,138.32,6.4048]
[1726261287623,9.99,138.35,138.32,2.7922]
[1726261287924,9.99,138.36,138.33,9.99]
[1726261288121,26.86600955,138.37,138.33,13.6025]
[1726261288417,9.99,138.37,138.33,13.6025]
[1726261288615,3.6119,138.36,138.33,13.6025]
[1726261290220,9.99,138.37,138.33,13.6025]
[1726261290425,3.6121,138.35,138.33,13.6025]
[1726261291828,3.6121,138.35,138.33,9.99]
[1726261292215,9.99,138.36,138.33,9.99]
[1726261292430,9.99,138.36,138.33,13.6024]
[1726261293532,3.66834507,138.38,138.33,13.6024]
[1726261293831,3.612,138.35,138.33,13.6024]
[1726261294029,3.612,138.35,138.33,9.99]
[1726261294829,13.6018,138.36,138.33,13.6024]
[1726261295835,3.612,138.35,138.33,13.6024]
[1726261296330,3.612,138.35,138.33,3.6124]
[1726261296929,3.612,138.35,138.32,16.3949]
[1726261297529,9.99,138.35,138.32,2.7922]
[1726261298028,3.6125,138.33,138.32,2.7922]
[1726261303446,3.6128,138.32,138.3,3.6132]
[1726261303741,3.6128,138.32,138.29,1.4312]
[1726261304940,3.6128,138.32,138.3,3.6133]
[1726261306440,3.6123,138.34,138.31,3.6128]
[1726261306645,3.6437738,138.38,138.32,9.99]
[1726261306837,9.99,138.37,138.32,9.99]
[1726261307038,3.6121,138.35,138.32,13.6026]
[1726261307241,1.3744,138.41,138.34,9.99]
[1726261307545,9.99,138.37,138.33,9.99]
[1726261307741,3.612,138.36,138.33,13.6024]
[1726261308130,3.63572823,138.39,138.33,9.99]
[1726261308347,9.99,138.37,138.33,9.99]
[1726261308637,9.99,138.35,138.31,2.7691]
[1726261309142,13.6021,138.35,138.32,3.6128]
[1726261311034,9.99,138.35,138.31,12.7591]
[1726261311239,3.6123,138.34,138.31,12.7591]
[1726261312141,3.6123,138.34,138.31,16.372]
[1726261314942,13.6021,138.35,138.32,3.6127]
[1726261317448,9.99,138.34,138.29,9.99]
[1726261318248,13.6026,138.33,138.3,3.6132]
[1726261319045,12.08868878,138.33,138.3,3.6132]
[1726261322153,13.6028,138.32,138.29,3.6135]
[1726261323048,3.613,138.31,138.29,3.6135]
[1726261323854,3.613,138.31,138.28,153.60546706]
[1726261324053,13.603,138.31,138.28,153.60546706]
[1726261324347,3.6133,138.3,138.28,153.60546706]
[1726261326547,9.99,138.31,138.28,153.60546706]
[1726261326748,9.99,138.3,138.25,9.99]
[1726261327053,9.99,138.29,138.25,9.99]
[1726261327653,13.6037,138.29,138.25,9.99]
[1726261328251,13.6037,138.29,138.26,3.6143]
[1726261328852,16.87886602,138.36,138.3,1.28099751]
[1726261329051,9.99,138.31,138.3,1.28099751]
[1726261329851,13.603,138.31,138.3,1.28099751]
[1726261332946,17.26959293,138.31,138.3,1.28099751]
[1726261337654,3.6144,138.26,138.22,9.99]
[1726261337955,13.6044,138.26,138.22,9.99]
[1726261338355,13.6044,138.26,138.23,3.615]
[1726261344358,9.99,138.25,138.23,3.615]
[1726261345064,13.6044,138.26,138.23,3.615]
[1726261345678,13.6044,138.26,138.24,3.6148]
[1726261345968,3.66659293,138.31,138.23,9.99]
[1726261346160,16.8771232,138.36,138.26,3.6142]
[1726261346362,13.6037,138.29,138.26,3.6142]
[1726261347470,9.99,138.29,138.27,3.6141]
[1726261347971,13.6034,138.3,138.27,3.6141]
[1726261349769,3.6131,138.31,138.28,3.6138]
[1726261349972,9.99,138.3,138.28,3.6138]
[1726261351076,13.6031,138.31,138.28,3.6138]
[1726261353081,9.99,138.3,138.28,3.6138]
[1726261358077,13.6035,138.3,138.27,3.6139]
[1726261358279,13.6035,138.3,138.27,13.6039]
[1726261358471,9.99,138.3,138.27,9.99]
[1726261358976,9.99,138.31,138.27,9.99]
[1726261359377,13.6032,138.31,138.28,13.6037]
[1726261359878,13.6032,138.31,138.28,9.99]
[1726261360280,9.99,138.31,138.29,3.6134]
[1726261360477,18.2804443,138.35,138.28,9.99]
[1726261360785,9.99,138.33,138.29,9.99]
[1726261360985,3.6126,138.33,138.3,3.6133]
[1726261361476,3.6126,138.33,138.29,9.99]
[1726261361682,3.6128,138.32,138.29,13.6035]
[1726261363680,3.6128,138.32,138.29,3.6135]
[1726261365067,13.6028,138.32,138.29,3.6135]
[1726261365381,13.6031,138.31,138.28,3.6137]
[1726261365578,9.99,138.29,138.24,0.7267]
[1726261365878,1.403,138.35,138.24,3.6148]
[1726261365879,9.99,138.27,138.24,3.6148]
[1726261366081,9.99,138.27,138.22,0.7267]
[1726261366376,9.99,138.27,138.23,9.99]
[1726261366687,13.6042,138.27,138.23,9.99]
[1726261366877,13.6042,138.27,138.24,3.6147]
[1726261369975,13.6039,138.28,138.25,3.6146]
[1726261370277,9.99,138.28,138.23,9.99]
[1726261370477,9.99,138.29,138.24,9.99]
[1726261370677,13.6037,138.29,138.26,3.6143]
[1726261374785,3.6134,138.3,138.27,3.6141]
[1726261374984,13.6034,138.3,138.27,3.6141]
[1726261375674,9.99,138.3,138.28,3.6137]
[1726261376481,13.6031,138.31,138.28,3.6137]
[1726261379787,3.6128,138.32,138.29,3.6134]
[1726261379985,9.99,138.32,138.28,9.99]
[1726261380185,1.403,138.35,138.3,9.99]
[1726261380385,3.6127,138.33,138.3,13.6033]
[1726261383479,13.6024,138.34,138.3,13.6033]
[1726261383680,13.6024,138.34,138.31,3.613]
[1726261384282,3.6121,138.35,138.31,3.613]
[1726261384485,3.6121,138.35,138.32,3.6127]
[1726261384680,9.99,138.36,138.32,9.99]
[1726261384883,26.85625119,138.36,138.32,9.99]
[1726261385084,16.86625119,138.35,138.32,13.6026]
[1726261385381,3.6119,138.36,138.32,9.99]
[1726261385786,3.6119,138.36,138.32,13.6026]
[1726261390186,3.6119,138.36,138.33,3.6125]
[1726261390494,3.6119,138.36,138.33,13.6025]
[1726261393096,3.6119,138.36,138.33,9.99]
[1726261393894,3.612,138.35,138.33,9.99]
[1726261399597,26.85625119,138.38,138.34,9.99]
[1726261399798,16.86625119,138.37,138.34,9.99]
[1726261400099,3.6118,138.36,138.34,9.99]
[1726261401495,20.47805119,138.36,138.34,9.99]
[1726261401696,3.6118,138.36,138.34,9.99]
[1726261402602,3.6115,138.37,138.35,9.99]
[1726261402797,9.99,138.39,138.35,9.99]
[1726261403001,3.611,138.39,138.37,9.99]
[1726261403196,16.87420828,138.43,138.37,9.99]
[1726261403495,9.99,138.41,138.37,9.99]
[1726261403702,3.6108,138.4,138.37,9.99]
[1726261405787,3.6105,138.41,138.35,1.337]
[1726261405989,3.6105,138.41,138.39,9.99]
[1726261406508,3.6103,138.42,138.39,9.99]
[1726261407402,9.99,138.43,138.39,9.99]
[1726261407403,3.6105,138.41,138.39,9.99]
[1726261407605,9.99,138.42,138.36,0.7267]
[1726261407791,1.3438,138.44,138.36,0.7267]
[1726261407792,9.99,138.4,138.36,9.99]
[1726261408603,3.611,138.39,138.36,9.99]
[1726261410600,3.6108,138.4,138.37,9.99]
[1726261412204,3.6108,138.4,138.38,9.99]
[1726261412503,3.6108,138.4,138.39,9.99]
[1726261414403,3.6108,138.4,138.38,9.99]
[1726261414596,1.3438,138.44,138.35,4.9488]
[1726261414597,3.6109,138.39,138.35,4.9488]
[1726261414792,9.99,138.41,138.37,9.99]
[1726261415503,3.6107,138.4,138.37,9.99]
[1726261417811,3.6111,138.39,138.35,4.9489]
[1726261418110,9.99,138.41,138.36,9.99]
[1726261418903,3.6113,138.38,138.36,9.99]
[1726261419405,9.99,138.39,138.34,9.99]
[1726261420208,3.6520151,138.39,138.34,9.99]
[1726261420406,9.99,138.4,138.35,9.99]
[1726261420601,13.68825686,138.4,138.35,9.99]
[1726261420906,9.99,138.4,138.36,9.99]
[1726261421611,3.6114,138.38,138.36,9.99]
[1726261425606,3.6115,138.37,138.35,9.99]
[1726261426114,9.99,138.39,138.33,4.9933]
[1726261426315,9.99,138.39,138.33,14.9833]
[1726261427314,9.99,138.38,138.33,14.9833]
[1726261427519,3.6119,138.36,138.33,11.3708]
[1726261429216,3.612,138.35,138.33,1.3808]
[1726261429414,3.612,138.35,138.32,14.9857]
[1726261429603,9.99,138.36,138.32,1.3831]
[1726261429810,3.6125,138.34,138.3,9.99]
[1726261430307,3.6126,138.33,138.3,9.99]
[1726261430815,9.99,138.33,138.29,1.3703]
[1726261431706,3.6128,138.32,138.29,1.3703]
[1726261440121,3.613,138.31,138.29,1.3703]
[1726261440919,3.6134,138.3,138.28,1.4285]
[1726261441122,3.6134,138.3,138.26,13.6042]
[1726261441327,3.6134,138.3,138.26,9.99]
[1726261441532,3.6134,138.3,138.26,13.6042]
[1726261444238,13.6032,138.31,138.27,3.614]
[1726261444937,3.6129,138.32,138.28,9.99]
[1726261445131,13.6029,138.32,138.29,9.99]
[1726261447334,7.22893591,138.33,138.29,13.6035]
[1726261447523,9.99,138.32,138.29,13.6035]
[1726261448129,9.99,138.32,138.29,3.6135]
[1726261448325,13.6028,138.32,138.28,13.6037]
[1726261449129,9.99,138.32,138.29,3.6135]
[1726261449526,13.6028,138.32,138.29,3.6135]
[1726261449734,13.6028,138.32,138.28,3.6137]
[1726261449941,13.6028,138.32,138.28,13.6037]
[1726261451241,9.99,138.32,138.29,3.6134]
[1726261451433,3.6126,138.33,138.29,13.6034]
[1726261451738,13.6022,138.35,138.3,13.603]
[1726261451935,13.6022,138.35,138.3,9.99]
[1726261452624,13.6022,138.35,138.31,3.613]
[1726261453637,3.6123,138.34,138.3,13.6032]
[1726261454034,9.99,138.33,138.3,3.6132]
[1726261454742,13.6025,138.33,138.3,3.6132]
[1726261455339,9.99,138.33,138.3,3.6132]
[1726261458147,3.6123,138.34,138.3,3.6132]
[1726261458346,9.99,138.34,138.29,9.99]
[1726261458644,9.99,138.34,138.3,2.7734]
[1726261459435,9.99,138.34,138.31,3.6129]
[1726261461746,13.6023,138.34,138.31,3.6129]
[1726261461945,18.17279967,138.39,138.31,3.6129]
[1726261462137,13.6022,138.34,138.3,6.3866]
[1726261462337,9.99,138.33,138.3,6.3866]
[1726261463938,13.6022,138.34,138.3,16.3766]
[1726261464139,13.6022,138.34,138.31,3.613]
[1726261464537,9.99,138.34,138.31,3.613]
[1726261465449,9.99,138.34,138.31,13.603]
[1726261467745,9.99,138.34,138.32,3.6127]
[1726261468047,9.99,138.35,138.31,9.99]
[1726261468350,9.99,138.35,138.32,9.99]
[1726261468649,9.99,138.36,138.33,9.99]
[1726261468855,13.6016,138.37,138.33,9.99]
[1726261469344,9.99,138.37,138.34,13.6021]
[1726261469549,3.6113,138.38,138.34,9.99]
[1726261469860,107.34582662,138.43,138.35,9.99]
[1726261470154,9.99,138.4,138.35,9.99]
[1726261470743,13.6009,138.4,138.36,3.6116]
[1726261470953,9.99,138.4,138.36,3.6116]
[1726261471252,13.6011,138.39,138.35,3.6119]
[1726261472355,3.6107,138.4,138.36,13.6015]
[1726261472750,13.6007,138.4,138.36,13.6015]
[1726261473157,9.99,138.39,138.36,13.6015]
[1726261473951,9.99,138.39,138.36,9.99]
[1726261474159,13.6009,138.39,138.36,9.99]
[1726261477459,9.99,138.39,138.36,13.6017]
[1726261478060,13.6009,138.39,138.36,13.6017]
[1726261478856,13.6009,138.39,138.37,7.18]
[1726261479262,3.6107,138.4,138.37,7.18]
[1726261479459,13.6007,138.4,138.37,10.7914]
[1726261479766,1.3421,138.44,138.37,20.7814]
[1726261479767,13.6005,138.41,138.37,20.7814]
[1726261480754,13.6003,138.42,138.38,3.6111]
[1726261481055,13.6003,138.42,138.38,13.6011]
[1726261481255,13.6003,138.42,138.39,3.6109]
[1726261482261,13.6003,138.42,138.38,13.6011]
[1726261482648,3.6103,138.42,138.38,9.99]
[1726261482853,13.6,138.43,138.39,3.6109]
[1726261483055,9.99,138.42,138.41,2.13]
[1726261484157,13.6002,138.42,138.41,2.13]
[1726261495770,3.6102,138.42,138.41,2.13]
[1726261495972,13.6002,138.42,138.41,2.13]
[1726261500471,3.6111,138.39,138.37,7.18]
[1726261500671,9.99,138.38,138.37,7.18]
[1726261502368,13.6011,138.39,138.37,7.18]
[1726261502569,17.23980961,138.4,138.37,7.18]
[1726261502766,13.6008,138.4,138.37,7.18]
[1726261503277,17.23935288,138.4,138.37,7.18]
[1726261503674,3.611,138.39,138.37,7.18]
[1726261503878,13.62855288,138.4,138.37,7.18]
[1726261504175,9.99,138.39,138.37,7.18]
[1726261504478,1.3421,138.44,138.37,7.18]
[1726261504679,9.99,138.42,138.37,17.17]
[1726261504878,9.99,138.42,138.37,9.99]
[1726261505278,3.6106,138.41,138.37,9.99]
[1726261506078,3.6106,138.41,138.38,6.6]
[1726261506672,13.6002,138.42,138.38,6.6]
[1726261506868,13.6002,138.42,138.38,16.59]
[1726261507074,11.3321,138.44,138.38,16.59]
[1726261507675,3.61,138.43,138.38,20.201]
[1726261508374,13.6,138.43,138.38,20.201]
[1726261508970,3.6102,138.42,138.38,20.201]
[1726261509172,13.6002,138.42,138.38,10.211]
[1726261509982,13.6002,138.42,138.38,16.401]
[1726261511875,3.6106,138.41,138.38,12.79]
[1726261512777,1.3421,138.44,138.39,9.99]
[1726261512977,9.99,138.43,138.39,9.99]
[1726261514888,3.6102,138.42,138.39,9.99]
[1726261516693,13.6002,138.42,138.38,16.401]
[1726261519390,9.99,138.42,138.38,16.401]
[1726261520477,13.6002,138.42,138.38,16.401]
[1726261520677,13.6002,138.42,138.38,26.391]
[1726261523785,13.6002,138.42,138.38,28.571]
[1726261523981,13.6004,138.41,138.38,14.97]
[1726261524186,9.99,138.4,138.38,14.97]
[1726261524389,13.6009,138.39,138.38,14.97]
[1726261524986,17.18607875,138.39,138.38,14.97]
[1726261526092,7.19607875,138.39,138.38,14.97]
[1726261526592,3.6108,138.4,138.38,14.97]
[1726261526984,3.61233711,138.39,138.38,14.97]
[1726261527587,20.41724689,138.4,138.38,14.97]
[1726261527784,16.80644689,138.39,138.38,14.97]
[1726261527983,3.6108,138.4,138.38,14.97]
[1726261528188,3.69473136,138.39,138.38,14.97]
[1726261528585,30.4117209,138.4,138.38,14.97]
[1726261528785,13.6008,138.4,138.38,14.97]
[1726261529092,16.81331278,138.46,138.39,9.99]
[1726261529290,9.99,138.43,138.39,9.99]
[1726261529991,26.80331278,138.43,138.39,9.99]
[1726261530596,16.81331278,138.42,138.39,9.99]
[1726261530794,16.81331278,138.42,138.39,13.6009]
[1726261531095,16.81331278,138.42,138.39,21.7009]
[1726261531294,16.81331278,138.42,138.39,18.09]
[1726261531795,13.6,138.43,138.39,18.09]
[1726261532099,13.6,138.43,138.39,21.7009]
[1726261532302,3.61,138.43,138.4,9.99]
[1726261532892,20.42331278,138.43,138.4,12.8129]
[1726261533094,16.81331278,138.42,138.41,5.39]
[1726261533399,16.81331278,138.43,138.41,15.38]
[1726261533896,9.99,138.45,138.41,21.15]
[1726261533897,16.81331278,138.44,138.41,21.15]
[1726261534093,3.57939795,138.45,138.41,21.15]
[1726261534294,3.6094,138.45,138.41,21.15]
[1726261534494,9.99,138.46,138.41,21.15]
[1726261534693,9.99,138.46,138.42,9.99]
[1726261535292,13.5992,138.46,138.42,9.99]
[1726261535497,16.81331278,138.46,138.42,9.99]
[1726261535802,16.81331278,138.46,138.44,9.99]
[1726261536003,16.81331278,138.47,138.44,16.59]
[1726261536503,17.15600561,138.48,138.44,16.59]
[1726261536691,16.81331278,138.47,138.44,16.59]
[1726261539197,20.42231278,138.47,138.44,16.59]
[1726261539398,20.42231278,138.47,138.44,6.6]
[1726261539899,13.5993,138.46,138.44,6.6]
[1726261541501,3.6094,138.45,138.44,6.6]
[1726261542210,13.5994,138.45,138.44,6.6]
[1726261545011,9.99,138.45,138.44,6.6]
[1726261545406,13.5994,138.45,138.44,6.6]
[1726261545914,13.5994,138.45,138.44,8.15]
[1726261546510,13.5994,138.45,138.41,21.15]
[1726261547603,3.6097,138.44,138.41,21.15]
[1726261548718,13.5995,138.45,138.41,21.15]
[1726261551112,13.5995,138.45,138.41,23.33]
[1726261551816,13.5995,138.45,138.41,13.34]
[1726261552122,3.6097,138.44,138.41,13.34]
[1726261556319,13.5997,138.44,138.41,19.55]
[1726261560119,3.6101,138.43,138.41,19.55]
[1726261560312,9.99,138.42,138.41,19.55]
[1726261561222,13.6002,138.42,138.41,19.55]
[1726261561422,13.6002,138.42,138.41,8.39]
[1726261566328,9.99,138.42,138.41,8.39]
[1726261570118,9.99,138.42,138.41,6.21]
[1726261574331,3.61,138.43,138.41,6.21]
[1726261574631,13.6,138.43,138.41,6.21]
[1726261576233,30.41331278,138.43,138.41,6.21]
[1726261576435,16.81331278,138.42,138.41,6.21]
[1726261576922,13.6,138.43,138.41,6.21]
[1726261577127,16.81331278,138.42,138.41,6.21]
[1726261577320,13.6,138.43,138.41,6.21]
[1726261581943,9.99,138.43,138.41,6.21]
[1726261591347,26.80331278,138.43,138.41,6.21]
[1726261591542,16.81331278,138.42,138.41,6.21]
[1726261591846,9.99,138.43,138.41,6.21]
[1726261595337,16.81331278,138.47,138.42,9.99]
[1726261595539,26.80331278,138.47,138.43,9.99]
[1726261595743,16.81331278,138.46,138.44,9.99]
[1726261595949,26.80331278,138.47,138.44,9.99]
[1726261596447,16.81331278,138.47,138.44,9.99]
[1726261596650,17.15590561,138.48,138.44,9.99]
[1726261596847,16.81331278,138.47,138.44,9.99]
[1726261597249,16.81331278,138.47,138.44,26.31]
[1726261598644,9.99,138.45,138.44,16.32]
[1726261599246,26.80331278,138.45,138.44,16.32]
[1726261599453,9.99,138.45,138.44,16.32]
[1726261600752,9.99,138.45,138.42,6.3101]
[1726261602549,20.42231278,138.47,138.42,6.3101]
[1726261602755,26.80331278,138.46,138.42,6.3101]
[1726261602959,16.81331278,138.45,138.42,6.3101]
[1726261603353,9.99,138.46,138.42,6.3101]
[1726261604359,13.5992,138.46,138.42,2.7001]
[1726261606156,13.5992,138.46,138.42,6.3102]
[1726261606546,3.6092,138.46,138.42,6.3102]
[1726261606749,9.99,138.46,138.42,6.3102]
[1726261607460,9.99,138.46,138.42,7.2002]
[1726261608756,9.99,138.46,138.42,17.1902]
[1726261614259,9.99,138.46,138.42,20.8702]
[1726261616660,26.80331278,138.47,138.43,13.5999]
[1726261617161,16.81331278,138.47,138.44,13.5996]
[1726261617366,16.81331278,138.48,138.44,13.5996]
[1726261617661,3.6085,138.49,138.44,9.99]
[1726261617662,17.16891684,138.49,138.44,9.99]
[1726261617850,16.81331278,138.48,138.44,9.99]
[1726261618268,16.81331278,138.48,138.47,9.99]
[1726261618563,9.99,138.51,138.47,9.99]
[1726261618751,3.6081,138.5,138.47,9.99]
[1726261619155,13.5981,138.5,138.47,9.99]
[1726261620065,30.41141278,138.5,138.47,9.99]
[1726261620260,16.81331278,138.49,138.47,9.99]
[1726261620668,13.5981,138.5,138.47,9.99]
[1726261621666,13.5981,138.5,138.46,13.5991]
[1726261622052,9.99,138.48,138.44,3.6095]
[1726261622258,1.4202,138.55,138.43,9.99]
[1726261622259,9.99,138.47,138.43,9.99]
[1726261622673,13.599,138.47,138.42,9.9902]
[1726261622872,9.99,138.47,138.42,16.3701]
[1726261623172,9.99,138.47,138.43,3.6098]
[1726261623555,26.80331278,138.47,138.43,3.6098]
[1726261623767,16.81331278,138.46,138.43,3.6098]
[1726261623972,30.41221278,138.47,138.44,0.89]
[1726261625372,30.41221278,138.47,138.44,6.66]
[1726261626665,9.99,138.46,138.44,6.66]
[1726261629972,9.99,138.46,138.44,10.34]
[1726261630867,26.80331278,138.47,138.44,10.34]
[1726261631758,9.99,138.47,138.44,10.34]
[1726261632474,13.5989,138.47,138.44,10.34]
[1726261632771,30.41221278,138.47,138.44,10.34]
[1726261632969,16.81331278,138.46,138.44,10.34]
[1726261633169,30.41221278,138.47,138.44,10.34]
[1726261635975,16.81331278,138.47,138.44,10.34]
[1726261636364,16.81331278,138.47,138.44,13.9496]
[1726261636568,13.51631707,138.48,138.44,13.9496]
[1726261636865,30.32962985,138.48,138.44,13.9496]
[1726261637076,16.81331278,138.47,138.44,13.9496]
[1726261637467,30.32962985,138.48,138.44,13.9496]
[1726261638871,20.33962985,138.48,138.44,13.9496]
[1726261639073,16.81331278,138.47,138.44,23.9396]
[1726261639380,16.81331278,138.47,138.44,20.33]
[1726261641983,26.80331278,138.47,138.44,10.34]
[1726261643178,30.41221278,138.47,138.44,10.34]
[1726261646271,9.99,138.46,138.44,10.34]
[1726261646483,9.99,138.45,138.44,10.34]
[1726261650175,13.5994,138.45,138.44,10.34]
[1726261663889,9.99,138.45,138.44,10.34]
[1726261673300,26.80331278,138.45,138.44,10.34]
[1726261673503,9.99,138.45,138.44,10.34]
[1726261681708,13.5994,138.45,138.44,10.34]
[1726261681905,13.5994,138.45,138.44,0.62687418]
[1726261682410,3.6098,138.44,138.39,3.6108]
[1726261682600,9.99,138.42,138.39,3.6108]
[1726261685005,16.81331278,138.47,138.39,3.6108]
[1726261685206,1.07537878,138.46,138.4,3.6107]
[1726261685410,9.99,138.43,138.4,3.6107]
[1726261686106,13.63219356,138.43,138.4,3.6107]
[1726261686412,13.63219356,138.43,138.39,13.6008]
[1726261686606,30.44550634,138.43,138.39,13.6008]
[1726261690015,30.44550634,138.43,138.39,14.2308]
[1726261697433,26.80331278,138.43,138.4,3.6107]
[1726261697620,13.5999,138.43,138.39,0.63]
[1726261697825,13.5999,138.43,138.39,10.62]
[1726261698134,13.5999,138.43,138.39,14.2308]
[1726261698835,13.5999,138.43,138.39,20.0108]
[1726261701326,3.62295142,138.44,138.4,9.99]
[1726261701531,9.99,138.44,138.4,9.99]
[1726261702644,9.99,138.44,138.41,2.7271]
[1726261704536,3.6095,138.45,138.41,2.7271]
[1726261704537,9.99,138.43,138.41,2.7271]
[1726261711548,9.99,138.43,138.41,3.3571]
[1726261713252,3.6096,138.44,138.41,3.3571]
[1726261713447,14.61699455,138.48,138.41,13.3471]
[1726261713652,4.97598532,138.5,138.41,3.3571]
[1726261713653,9.99,138.43,138.41,3.3571]
[1726261715543,9.99,138.43,138.41,6.9675]
[1726261723442,14.61699455,138.49,138.41,6.9675]
[1726261723647,9.99,138.44,138.41,6.9675]
[1726261724555,9.99,138.44,138.42,3.6101]
[1726261725942,3.6089,138.47,138.43,3.6097]
[1726261726147,9.99,138.46,138.43,3.6097]
[1726261726353,9.99,138.46,138.41,13.3471]
[1726261726648,9.99,138.45,138.42,3.61]
[1726261727749,13.5994,138.45,138.42,3.61]
[1726261728252,9.99,138.45,138.42,3.61]
[1726261729053,24.59022151,138.45,138.42,3.61]
[1726261729253,9.99,138.45,138.42,3.61]
[1726261732963,3.6094,138.46,138.42,3.61]
[1726261733156,9.99,138.45,138.42,3.61]
[1726261733753,24.58613813,138.45,138.42,3.61]
[1726261733957,9.99,138.45,138.42,3.61]